Cogmind - Beta 15 @@@ ROGUE MODE // 2025.05.08 @ 19:06:29 Player: Quartz Result: Self-destructed Performance ------------- Evolutions (2) 1000 Regions Visited (6) 1200 Robots Destroyed (56) 280 Value Destroyed (1588) 1588 Prototype IDs (26) 520 Alien Tech Used (0) 0 Bonus (300) 300 TOTAL SCORE: 4888 Bonus ------- Aligned with FarCom 300 Cogmind --------- Core Integrity 431/550 Matter 300/300 Energy 125/125 System Corruption 2% Temperature Cool (0) Movement Walking (120) Location -8/Storage Parts ------- > --- POWER (1) -------- Light Ion Engine > --- PROPULSION (4) --- Aluminum Leg Carbon-fiber Leg Carbon-fiber Leg Carbon-fiber Leg > --- UTILITY (4) ------ Medium Storage Unit Light Armor Plating Hardened Medium Armor Plating Drone Bay (2/2) > --- WEAPON (2) ------- Advanced Beam Rifle Gauss Rifle > --- INVENTORY (10) --- Cooling System Hacking Suite Heavy Laser AWS/Gauss Plasma Flamer Peak State ------------ > --- POWER ------------ Light Nuclear Core > --- PROPULSION ------- Aluminum Leg Carbon-fiber Leg Carbon-fiber Leg Carbon-fiber Leg > --- UTILITY ---------- Cooling System Light Humpback Light Armor Plating > --- WEAPON ----------- Heavy Laser Heavy Laser > --- INVENTORY -------- Aluminum Leg Cooling System High-capacity Matter Pod Subdweller Optics Experimental Sensor Array Core Analyzer Core Analyzer Recoil Stabilizer Improved Weapon Shielding Light Armor Plating Insulated Plating Hardlight Generator System Shield System Restoration Module System Restoration Module System Restoration Module System Restoration Module Heavy Laser Heavy Laser Gauss Rifle AWS/Gauss EMP Blaster Plasma Flamer Impact Mace [Rating: 35] Favorites ----------- Power Subdweller Power Source Engine Subdweller Power Source Power Core Nuclear Core Propulsion Aluminum Leg Leg Aluminum Leg Wheel Armored Wheel Hover Unit Hover Unit Utility Signal Interpreter Device Cooling System Storage Large Storage Unit Processor Signal Interpreter Protection Light Armor Plating Weapon Heavy Laser Energy Gun Heavy Laser Ballistic Gun Light Assault Rifle Launcher EMP Blaster Impact Weapon Impact Mace Build | -11 -10 -10 -10 -9 -8 -8 ------- Run | Yrd Mat Min Exi Min Mat Sto Slots Evolved 4 | . . . . . 4 . Power . | . . . . . . . Propulsion 2 | . . . . . 2 . Utility 2 | . . . . . 2 . Weapon . | . . . . . . . Parts Attached 51 | 5 13 . 1 5 22 5 Power 8 | . 3 . . 1 3 1 Engine 6 | . 3 . . 1 1 1 Core 2 | . . . . . 2 . Reactor . | . . . . . . . Propulsion 13 | 2 3 . . 2 6 . Treads . | . . . . . . . Leg 10 | 2 . . . 2 6 . Wheel 1 | . 1 . . . . . Hover 2 | . 2 . . . . . Flight . | . . . . . . . Utility 11 | 1 3 . . . 3 4 Device 2 | . . . . . 1 1 Storage 4 | 1 1 . . . 1 1 Processor 2 | . 2 . . . . . Hackware . | . . . . . . . Protection 3 | . . . . . 1 2 Artifact . | . . . . . . . Weapon 19 | 2 4 . 1 2 10 . Energy Gun 9 | 2 1 . . . 6 . Energy Cannon . | . . . . . . . Ballistic Gun 6 | . 3 . 1 . 2 . Ballistic Cannon . | . . . . . . . Launcher 2 | . . . . 2 . . Special Weapon . | . . . . . . . Impact Weapon 2 | . . . . . 2 . Slashing Weapon . | . . . . . . . Piercing Weapon . | . . . . . . . Special Melee Weapon . | . . . . . . . Unidentified Prototypes 3 | . . . . . 3 . Parts Lost 10 | . 4 1 . 1 3 1 Power 2 | . 1 . . . 1 . Propulsion 5 | . 2 . . 1 2 . Utility 1 | . . . . . . 1 Weapon 2 | . 1 1 . . . . Highest Loss Streak 2 | . 2 1 . 1 1 1 To Critical Strikes . | . . . . . . . Average Backups 13 | 2 6 15 14 12 20 11 Power . | 1 1 1 1 . . . Propulsion . | . . . . . . . Utility 8 | . 3 11 10 9 12 7 Weapon 3 | . 1 3 3 2 5 4 Tool/Special . | . . . . . . . Unused Backups 34 | . 3 1 2 2 7 19 Power . | . . . . . . . Propulsion 1 | . 1 . . . . . Utility 28 | . 2 1 2 1 6 16 Weapon 5 | . . . . 1 1 3 Tool/Special . | . . . . . . . Average Slot Usage (%) 82 | . 93 77 68 71 78 89 Engine 8 | . 12 14 14 13 . 7 Core 2 | . . . . . 7 . Leg 21 | . 20 . . 5 30 36 Wheel 3 | . 2 14 14 8 . . Device 2 | . . . . . 6 5 Storage 11 | . 14 14 14 14 9 8 Processor 9 | . 12 14 14 14 6 . Protection 2 | . . . . . 2 14 Energy Gun 9 | . 13 . . . 12 9 Ballistic Gun 9 | . 14 20 11 12 3 9 Peak Build Rating 35 | 5 11 11 25 25 35 34 Average Rating 19 | 3 7 10 16 23 27 30 On Entrance 15 | . 5 11 10 25 25 32 Naked Turns . | . . . . . . . Heaviest Build 58 | 9 30 30 35 35 58 54 Greatest Support 55 | 20 20 12 12 20 55 55 Greatest Overweight (x) 11 | 1 2 2 2 11 2 . Average Overweight (x) 1 | . . 2 2 2 1 . Largest Inventory Capacity 25 | 8 15 15 15 15 25 25 Average Capacity 17 | 7 11 15 15 15 23 15 Most Carried 25 | 5 15 15 15 15 25 25 Average Carried 14 | 2 6 14 14 13 21 12 Final Capacity 25 | 8 15 15 15 15 25 10 Final Carried 24 | 3 15 15 15 13 24 6 Class Distribution -------------------- 64% | Mutant 35% | Scavenger-Mutant Dominant Class ---------------- Mutant | -10/Materials Mutant | -10/Mines Mutant | -10/Exiles Mutant | -9/Mines Scavenger-Mutant | -8/Materials Scavenger-Mutant | -8/Storage Resources | -11 -10 -10 -10 -9 -8 -8 ----------- Run | Yrd Mat Min Exi Min Mat Sto Matter Collected 1241 | 159 338 114 . 180 302 148 Remotely . | . . . . . . . Salvage Created 2199 | . 634 132 . 231 941 261 Parts 124 | . 39 13 . 15 40 17 Haulers Intercepted 4 | . 2 . . . 1 1 Recyclers Shooed . | . . . . . . . Parts Field Recycled . | . . . . . . . Retrieved Matter . | . . . . . . . Parts Self-Destructed . | . . . . . . . Prevented . | . . . . . . . Kills | -11 -10 -10 -10 -9 -8 -8 ------- Run | Yrd Mat Min Exi Min Mat Sto Combat Hostiles Destroyed 43 | . 17 5 . 2 16 3 Guns 41 | . 17 5 . 1 15 3 Classes Destroyed 11 | . 5 . . 3 3 . Worker 1 | . . . . 1 . . Builder 4 | . . . . 1 1 2 Hauler 4 | . 2 . . . 1 1 Recycler 1 | . . . . 1 . . Watcher 3 | . 2 . . . 1 . Swarmer 12 | . 9 3 . . . . Grunt 21 | . 5 2 . 2 10 2 Duelist 1 | . . . . . 1 . Sentry 5 | . . . . . 4 1 Hunter 1 | . . . . . 1 . Subdweller 3 | . 3 . . . . . Best Kill Streak 4 | . 4 3 . 3 4 2 Combat Bots Only 4 | . 4 3 . 1 4 2 Max Kills in Single Turn 2 | . 2 1 . 1 1 2 Gunslinging . | . . . . . . . Exploded . | . . . . . . . Melee . | . . . . . . . Uniques/NPCs Destroyed . | . . . . . . . Combat | -11 -10 -10 -10 -9 -8 -8 -------- Run | Yrd Mat Min Exi Min Mat Sto Hostile Shots Fired 191 | . 67 13 . 9 97 5 Missed 60 | . 21 3 . 6 29 1 Hits 131 | . 46 10 . 3 68 4 Projectile 131 | . 46 10 . 3 68 4 Critical Strikes 3 | . . . . . 3 . Damage Taken 2080 | . 729 96 . 136 1030 89 Core 317 | . 164 . . 34 119 . Absorbed by Shields . | . . . . . . . Regen/Repaired (Parts) 68 | . . . . . 68 . Core Remaining (%) 60 | 100 . . . 20 . . Volleys Fired 163 | . 75 10 . 4 61 13 Largest 2 | . 2 2 . 2 2 2 Hottest 138 | . 90 50 . 66 138 89 Shots Fired 332 | . 138 17 1 10 140 26 Gun 324 | . 138 17 1 2 140 26 Cannon . | . . . . . . . Launcher 8 | . . . . 8 . . Special . | . . . . . . . Kinetic 166 | . 86 17 1 2 47 13 Thermal 145 | . 51 . . . 81 13 Explosive . | . . . . . . . Electromagnetic 21 | . 1 . . 8 12 . Robot Hit Streak 17 | . 12 4 . 2 17 8 Robot Miss Streak 5 | . 3 2 . 3 4 5 Penetration Max . | . . . . . . . Secondary Targets 2 | . 1 . . . 1 . Max Gunslinging Chain 1 | . 1 . . . 1 . Autonomous 37 | . . . . 2 35 . Shots Hit Robots 226 | . 94 9 . 3 104 16 Core Hits 89 | . 35 7 . 7 32 8 Critical Kills 2 | . 1 1 . . . . Critical Parts Destroyed 1 | . 1 . . . . . Critical Strikes 11 | . 6 1 . . 4 . Burn 8 | . 4 . . . 4 . Destroy 3 | . 2 1 . . . . Melee Attacks . | . . . . . . . Impact . | . . . . . . . Slashing . | . . . . . . . Piercing . | . . . . . . . Sneak Attacks . | . . . . . . . Combat Hostiles . | . . . . . . . Follow-up Attacks . | . . . . . . . Damage Inflicted 4064 | 3 990 144 . 264 2305 358 Guns 3802 | . 989 144 . 23 2288 358 Cannons . | . . . . . . . Explosions 191 | . . . . 191 . . Melee . | . . . . . . . Ramming 71 | 3 1 . . 50 17 . Kinetic 1943 | . 554 144 . 23 1044 178 Thermal 1659 | . 422 . . . 1057 180 Explosive . | . . . . . . . Electromagnetic 391 | . 13 . . 191 187 . Impact . | . . . . . . . Slashing . | . . . . . . . Piercing . | . . . . . . . Highest Corruption 2 | . 1 1 1 1 2 2 Average Corruption 1 | . 1 1 1 1 2 2 Corruption Purged . | . . . . . . . Corruption Blocked . | . . . . . . . Effects 22 | . . . 3 3 9 7 Message Errors 6 | . . . 1 2 3 . Matter Fused 3 | . . . . . 1 2 Heat Flow Errors 2 | . . . . . 2 . Energy Discharges 2 | . . . . . 1 1 Parts Rejected 1 | . . . . 1 . . Data Loss (minor) 3 | . . . . . 1 2 Data Loss (major) 2 | . . . 1 . . 1 Misfires 2 | . . . 1 . 1 . Alerts 1 | . . . . . . 1 Overload Shots . | . . . . . . . Overflow Damage 2 | . . . . 2 . . Projectiles . | . . . . . . . Explosions 2 | . . . . 2 . . Melee . | . . . . . . . Knockbacks . | . . . . . . . Impact . | . . . . . . . Kinetic . | . . . . . . . Secondary . | . . . . . . . Self-Inflicted Damage 88 | . . . . 88 . . Shots 4 | . . . . 4 . . Rammed 6 | . . . . 6 . . Targets Rammed 12 | 1 1 . . 7 3 . Kicked 6 | 1 1 . . 1 3 . Crushed . | . . . . . . . Highest Temperature 225 | . 204 32 . 21 225 198 Average Temperature 57 | . 49 14 . 8 69 78 Received Heat Transfer 795 | . 195 33 . 27 504 36 Siege Activations . | . . . . . . . Martial Activations . | . . . . . . . Shielding Activations . | . . . . . . . Robots Disrupted . | . . . . . . . Combat Hostiles . | . . . . . . . Robots Corrupted 1 | . . . . 1 . . Combat Hostiles 1 | . . . . 1 . . Parts Fried 2 | . . . . 2 . . Impact Corruptions . | . . . . . . . Robots Melted 1 | . . . . . 1 . Combat Hostiles 1 | . . . . . 1 . Parts Melted 12 | . 3 . . . 8 1 Heat Transferred 4255 | . 1554 . . . 2368 333 Parts Sabotaged . | . . . . . . . Parts Stolen . | . . . . . . . Parts Stripped . | . . . . . . . Power Chain Reactions . | . . . . . . . Alert | -11 -10 -10 -10 -9 -8 -8 ------- Run | Yrd Mat Min Exi Min Mat Sto Maximum Alert Level . | . . . . . . . Low Security (%) 100 | 100 100 100 . 100 100 100 Level 1 . | . . . . . . . Level 2 . | . . . . . . . Level 3 . | . . . . . . . Level 4 . | . . . . . . . Level 5 . | . . . . . . . High Security . | . . . . . . . Max Security . | . . . . . . . Peak Influence 132 | . 132 125 . 50 120 44 Initial 44 | . . 34 . . . 44 Average 39 | . 51 80 . 8 45 8 Influence Increases 1313 | . 444 141 . 81 535 112 Destroy 0b10 Robot/C 800 | . 280 100 . 40 320 60 Destroy 0b10 Robot/NC 65 | . 20 . . 15 15 15 Destroy Leader 214 | . 78 20 . 10 94 12 Successful Hack 72 | . 21 5 . . 21 25 Disable Machine 30 | . . 15 . . 15 . Destroy Structure 12 | . . 1 . 1 10 . Lose Combat Pursuer 120 | . 45 . . 15 60 . Influence Decreases 1313 | . 355 155 75 81 429 218 Entered New Map 192 | . . 55 75 . . 62 Time Decay 1035 | . 315 90 . 76 408 146 Lost Part 86 | . 40 10 . 5 21 10 Squads Dispatched 9 | . 4 . . . 3 2 Investigation 6 | . 2 . . . 2 2 Extermination . | . . . . . . . Reinforcement 3 | . 2 . . . 1 . Assault . | . . . . . . . Garrison . | . . . . . . . Intercept . | . . . . . . . Searches Triggered . | . . . . . . . Construction Impeded . | . . . . . . . Haulers Reinforced . | . . . . . . . Active Scanning Responses . | . . . . . . . Cargo Convoy Interrupts . | . . . . . . . Stealth | -11 -10 -10 -10 -9 -8 -8 --------- Run | Yrd Mat Min Exi Min Mat Sto Distress Signals 3 | . 1 . . 1 1 . Communications Jammed . | . . . . . . . Distress Signals . | . . . . . . . Times Spotted 70 | . 34 5 . 3 25 3 Peak Tracking Total 6 | . 6 3 . 2 3 2 Tactical Retreats 9 | . 5 . . 1 3 . Traps | -11 -10 -10 -10 -9 -8 -8 ------- Run | Yrd Mat Min Exi Min Mat Sto Traps Triggered 6 | . 4 . . . 1 1 Indirectly . | . . . . . . . Trap Hack Attempts . | . . . . . . . Triggered . | . . . . . . . Disarmed . | . . . . . . . Reprogrammed . | . . . . . . . Reused . | . . . . . . . Traps Extracted . | . . . . . . . Installed . | . . . . . . . Triggered . | . . . . . . . Machines | -11 -10 -10 -10 -9 -8 -8 ---------- Run | Yrd Mat Min Exi Min Mat Sto Machines Disabled 2 | . . 1 . . 1 . Max in Single Turn 1 | . . 1 . . 1 . Machines Repaired . | . . . . . . . Machines Dismantled . | . . . . . . . Machines Sabotaged . | . . . . . . . Overloaded Fab Kills . | . . . . . . . Hacking | -11 -10 -10 -10 -9 -8 -8 --------- Run | Yrd Mat Min Exi Min Mat Sto Machines Accessed 18 | . 4 1 3 . 5 5 Terminals 13 | . 4 1 . . 4 4 Fabricators . | . . . . . . . Repair Stations 1 | . . . . . 1 . Recycling Units 1 | . . . . . . 1 Scanalyzers . | . . . . . . . Garrison Access . | . . . . . . . Total Hacks 46 | . 12 1 5 . 14 14 Successful 24 | . 4 1 5 . 6 8 Failed 22 | . 8 . . . 8 6 Catastrophic 2 | . 2 . . . . . Database Lockouts . | . . . . . . . Manual 27 | . 10 . 1 . 10 6 Terminals 34 | . 12 1 . . 12 9 Fabricators . | . . . . . . . Repair Stations 2 | . . . . . 2 . Recycling Units 5 | . . . . . . 5 Scanalyzers . | . . . . . . . Garrison Access . | . . . . . . . Terminal Hacks 10 | . 1 1 5 . . 3 Record 4 | . . . 4 . . . Part Schematic 1 | . . . . . . 1 Robot Schematic 1 | . . . . . . 1 Open Door 1 | . . . . . . 1 Terminal Index 1 | . 1 . . . . . Zone Layout 1 | . . 1 . . . . Proto ID Catalog 1 | . . . 1 . . . Fabricator Hacks . | . . . . . . . Repair Station Hacks 2 | . . . . . 2 . Scan Component 1 | . . . . . 1 . Repair 1 | . . . . . 1 . Recycling Unit Hacks 1 | . . . . . . 1 Report Inventory 1 | . . . . . . 1 Scanalyzer . | . . . . . . . Garrison Access Hacks . | . . . . . . . Unauthorized Hacks 11 | . 3 . . . 4 4 Terminals 9 | . 3 . . . 4 2 Botnet 9 | . 3 . . . 4 2 Fabricators . | . . . . . . . Repair Stations . | . . . . . . . Recycling Units 2 | . . . . . . 2 Reject 1 | . . . . . . 1 Mask 1 | . . . . . . 1 Scanalyzers . | . . . . . . . Garrison Access . | . . . . . . . Data Cores Recovered . | . . . . . . . Used . | . . . . . . . Hacking Detections 12 | . 4 . . . 4 4 Full Trace Events 4 | . 1 . . . 1 2 Feedback Events 1 | . 1 . . . . . Corruption 1 | . 1 . . . . . Feedback Blocked . | . . . . . . . Robot Schematics Acquired 1 | . . . . . . 1 Robots Built . | . . . . . . . Authchips . | . . . . . . . Time . | . . . . . . . Total Robot Build Rating . | . . . . . . . Part Schematics Acquired 1 | . . . . . . 1 Parts Built . | . . . . . . . Authchips . | . . . . . . . Time . | . . . . . . . Total Part Build Rating . | . . . . . . . Parts Repaired 1 | . . . . . 1 . Time 26 | . . . . . 26 . Parts Recycled . | . . . . . . . Recycled Matter . | . . . . . . . Retrieved Matter . | . . . . . . . Retrieved Components . | . . . . . . . Parts Scanalyzed . | . . . . . . . Part Schematics Acquired . | . . . . . . . Parts Damaged . | . . . . . . . Bothacking | -11 -10 -10 -10 -9 -8 -8 ------------ Run | Yrd Mat Min Exi Min Mat Sto Used RIF Installer . | . . . . . . . Robots Hacked . | . . . . . . . Non-combat . | . . . . . . . Combat . | . . . . . . . Robot Hacks Applied . | . . . . . . . Relay Couplers Released . | . . . . . . . Fabnet Peak Effective % . | . . . . . . . Robots Rewired . | . . . . . . . Allies Hacked . | . . . . . . . Hacks Repelled . | . . . . . . . Allies | -11 -10 -10 -10 -9 -8 -8 -------- Run | Yrd Mat Min Exi Min Mat Sto Total Allies . | . . . . . . . Largest Group . | . . . . . . . Highest-Rated Group . | . . . . . . . Highest-Rated Ally . | . . . . . . . Total Orders 2 | . . . . . . 2 EXPLORE 2 | . . . . . . 2 Ally Attacks . | . . . . . . . Total Damage . | . . . . . . . Kills . | . . . . . . . Allies Corrupted . | . . . . . . . Allies Melted . | . . . . . . . Intel | -11 -10 -10 -10 -9 -8 -8 ------- Run | Yrd Mat Min Exi Min Mat Sto Active Infowar (turns) . | . . . . . . . Robot Analysis Total . | . . . . . . . Derelict Logs Recovered 2 | . . 1 . 1 . . Drone Launches 2 | . . . . . . 2 Drone Recoveries 2 | . . . . . . 2 Exploration | -11 -10 -10 -10 -9 -8 -8 ------------- Run | Yrd Mat Min Exi Min Mat Sto Turns Passed 5422 | 67 1539 186 542 600 1960 528 Spaces Moved 2805 | 50 856 128 444 351 601 375 Core 37 | 21 . . . 16 . . Treads . | . . . . . . . Legs 1670 | 29 600 . . 65 601 375 Wheels 1066 | . 224 128 444 270 . . Hover 32 | . 32 . . . . . Flight . | . . . . . . . Fastest Speed 50 | 50 116 120 120 120 120 120 Average Speed 143 | 106 131 120 120 153 196 120 Slowest Speed 600 | 120 260 120 120 600 260 120 Overloaded Moves . | . . . . . . . Propulsion Burnouts . | . . . . . . . Robots Hopped . | . . . . . . . Potential Cave-ins . | . . . . . . . Cave-ins Triggered . | . . . . . . . Exploration Rate (%) 46 | 5 98 26 72 56 33 34 Regions Visited 6 Branch Regions 4 Pre-discovered Areas 4 | . . 2 . 1 . 1 Known Exits Taken 4 | . 1 1 1 1 . . Unknown Exits Taken 2 | 1 . . . . 1 . Scrap Searched 2 | . . . . 2 . . Spaces Dug . | . . . . . . . Terrain Destroyed 21 | . . 1 . 1 18 1 Melee . | . . . . . . . Projectile 20 | . . 1 . 1 17 1 AOE . | . . . . . . . Terrain Rammed . | . . . . . . . Walls Destroyed . | . . . . . . . Machines Disabled . | . . . . . . . Actions | -11 -10 -10 -10 -9 -8 -8 --------- Run | Yrd Mat Min Exi Min Mat Sto Total 3920 | 63 1147 145 454 405 1280 426 Wait 742 | . 163 6 . 22 523 28 Move 2799 | 49 855 127 443 350 600 375 Hop . | . . . . . . . Pick Up 88 | 8 27 1 2 8 38 4 Fast Attach 7 | . 1 . 1 . 4 1 Attach 35 | 5 7 . . 7 13 3 Detach 2 | . . . . . 2 . Swap 20 | . 7 . . . 12 1 Drop 48 | . 11 1 4 7 24 1 Fire 163 | . 75 10 . 4 61 13 Melee . | . . . . . . . Ram 6 | . . . . 6 . . Kick 6 | 1 1 . . 1 3 . Crush . | . . . . . . . Escape Stasis . | . . . . . . . Rewire 4 | . . . 4 . . . Trap . | . . . . . . . Miscellaneous . | . . . . . . . Route ------- -11/Scrapyard -10/Materials (discovered 6 exits: *Mat x3 / *Min x2 / *Sub) -10/Mines (discovered 2 exits: *Mat / *Exi) -10/Exiles -9/Mines -8/Materials -8/Storage History --------- Turn | Location | Event 11 | -11/Scrapyard | Discovered new exit (range 15) 68 | -11/Scrapyard | Entered Materials 225 | -10/Materials | Discovered new exit (range 11) 309 | -10/Materials | Build established: Mutant 585 | -10/Materials | Discovered new exit (range 7) 854 | -10/Materials | Discovered new exit (range 9) 955 | -10/Materials | Identified exit to Materials 1149 | -10/Materials | Discovered new exit (range 6) 1168 | -10/Materials | Derelicts attacked the area 1243 | -10/Materials | Core integrity fell below 50% 1341 | -10/Materials | Identified exit to Subcaves 1371 | -10/Materials | Discovered exit to Materials (range 15) 1519 | -10/Materials | Discovered new exit (range 16) 1606 | -10/Materials | Identified exit to Mines 1607 | -10/Materials | Entered Mines 1608 | -10/Mines | Learned location of Storage (-8) 1677 | -10/Mines | Learned location of Zion (-7) 1695 | -10/Mines | Met a Derelict bent on vengeance 1713 | -10/Mines | Discovered exit to Materials (range 5) 1753 | -10/Mines | Found a damaged Exp. Sensor Array with a note attached 1756 | -10/Mines | Found Prototype Device 1785 | -10/Mines | Deemed a non-threat by the Exiles lab entrance 1786 | -10/Mines | Discovered new exit (range 5) 1791 | -10/Mines | Identified exit to Exiles 1793 | -10/Mines | Entered Exiles 1822 | -10/Exiles | Met 8R-AWN 1840 | -10/Exiles | Met EX-HEX 1881 | -10/Exiles | Met EX-BIN 1895 | -10/Exiles | Aligned with FarCom system 1897 | -10/Exiles | Given EX-Vault access code 1928 | -10/Exiles | Opened EX-Vault 1985 | -10/Exiles | Warned to stay clear of 0b10 Research branches 2103 | -10/Exiles | Found AWS/Gauss 2162 | -10/Exiles | Met EX-DEC 2318 | -10/Exiles | Discovered new exit (range 15) 2332 | -10/Exiles | Identified exit to Mines 2335 | -10/Exiles | Left Exiles lab with AWS/Gauss 2335 | -10/Exiles | Entered Mines 2392 | -9/Mines | Discovered new exit (range 10) 2411 | -9/Mines | Identified exit to Materials 2461 | -9/Mines | A weapon hastily lodged in a ceiling crevice suddenly fell to the ground 2517 | -9/Mines | Found a hidden stash of uninstalled traps 2935 | -9/Mines | Entered Materials 2935 | -8/Materials | Evolved 4 slots: Propulsion x2, Utility x2 3411 | -8/Materials | AWS/Gauss suddenly broke down 3690 | -8/Materials | Repaired Aluminum Leg 3975 | -8/Materials | Build established: Scavenger-Mutant 4223 | -8/Materials | Discovered new exit (range 14) 4895 | -8/Materials | Entered Storage 5204 | -8/Storage | Learned location of Armory (-3) 5423 | -8/Storage | Self-destructed Last Messages --------------- Imp. Carbon-fiber Leg Rating: 4 Schematic downloaded. 05245_ ALERT: Suspicious activity at Terminal S002. Dispatching Investigation squad. 05251_ Drone retrieved by Drone Bay (no repairs). 05272_ System corrupted: Component data lost. 05281_ Acquired Hacking Suite. 05287_ Connecting with Terminal... >>Trojan(Botnet) Trojan loaded successfully. Testing... Terminal linked with 1 system. Awaiting botnet instructions. 05290_ Triggered Explosive Trap. 05290_ An explosion rips through the floor. 05314_ Y-45 Defender destroyed. 05314_ Slug penetrates Wall. 05319_ Acquired 44 matter. 05331_ Connecting with Terminal... Map ----- +----------------------------------------------------+ | ???????"""" ?# #???????????? | | ??????? ?# #???????????? | | ??????#####??# ######??????? | | ?????????????# ## #??????? | | ?????????????# ## #??##### | | ?????????????# ## #??#! !# | | ?????????????# ###+#???#! !# | | ?????????????# #####! !# | | ?????????????# ##! # | | ???????####### ### ## | | ???????# % # "" # T# | | ???????# !% # "T + ## | | ???????# = # "" #####? | | ???????# !# #????? | | ???????# [ # #????? | | ???????# # """ #????? | | ???????# #g """ #????? | | ?##########+## """ #????? | | ?+ g ###??? | | ?# #??? | | ?# ######## #??? | | + #??????# #??? | | # ##+## ######+#####???# #??? | | ?# # ## #???# #??? | | ?# ! ## ##### #??? | | ?# #! ## """ """ + @#??? | | ?#?#! #T """ """ #######??? | | ???# ## """ """ #????????? | | ???# "T" ## """ """ #????????? | | ???# """ ## """!""" #????????? | | ???######## =%!= #????????? | | ??????????######### #????????? | | ??????????????????###????????? | | ?????????????????????????????? | | ?????????????????????????????? | | ?????????????????????????????? | | ?????????????????????????????? | | ?????????????????????????????? | | | | | | | | | | | | | | | | | | | | | | | | | +----------------------------------------------------+ Best States ------------- Heat Dissipation 53 Energy Generation 15 Energy Capacity 250 Matter Stores 300 Matter Capacity 300 Sight Range 16 Terrain Scan Density 10 Armor Coverage 375 Evasion (%) 55 Targeting Accuracy 5 Item Schematics ----------------- Imp. Carbon-fiber Leg | -8/Storage | Hacked Robot Schematics ------------------ A-02 Transporter | -8/Storage | Hacked Fabricated ------------ Nothing Repaired ---------- Aluminum Leg | 24% | -8/Materials Alien Tech Used ----------------- None Achievements -------------- None Challenges ------------ None Game ------ Seed GuidanceSigixReconfigurator Manual? 0 Play Time 00:45:05 Cumulative 33.5 hours Start 2025.05.07 @ 21:08:23 End 2025.05.08 @ 19:06:29 Sessions 3 Manual Loads 0 Difficulty Rogue Special Mode None Game No. 57 Rogue 57 Adventurer 0 Explorer 0 Win Type - Total 0 Types 0/0/0/0/0/0/0/0/0/0 Lore% 10 Gallery% 24 Achievement% 24 Wizard Run 0 Options --------- Layout 2 ASCII 0 Keyboard 0 Movement Arrows Keybinds 0 Fullscreen 1 Font 24/Smallcaps Map View 50x44 Zoom Use 0% Tactical HUD 1 Map Filters NONE Filters NONE Steam 1 RUN: d084a0bf-a2c9-4a5a-91c7-bdff1f97a075